bitfinex/quotes_SOLUSD_20250108
["timestamp","ask_amount","ask_price","bid_price","bid_amount"]
[1736296085166,0.12549,202.91,202.79,14.60405883]
[1736296085468,0.12549,202.91,202.82,20.0]
[1736296087365,23.902374,202.91,202.77,14.60405883]
[1736296087555,0.12549,202.88,202.75,14.60405883]
[1736296087741,0.12549,202.86,202.75,14.60405883]
[1736296088164,0.12549,202.86,202.78,20.0]
[1736296088368,0.12549,202.84,202.78,20.0]
[1736296088557,0.12549,202.84,202.73,14.60405883]
[1736296088875,0.12549,202.84,202.74,23.776884]
[1736296089083,0.12549,202.84,202.72,14.60405883]
[1736296089576,0.12549,202.84,202.75,20.0]
[1736296089806,23.902374,202.84,202.75,20.0]
[1736296090263,23.902374,202.84,202.69,22.49145883]
[1736296090264,23.902374,202.84,202.74,20.0]
[1736296091570,0.12549,202.84,202.72,58.38094283]
[1736296091877,2.38549,202.84,202.74,14.60405883]
[1736296092944,0.12549,202.84,202.74,14.60405883]
[1736296094557,0.12549,202.84,202.77,14.60405883]
[1736296094751,0.12549,202.84,202.72,36.84831058]
[1736296094752,0.12549,202.84,202.75,20.0]
[1736296095003,0.12549,202.84,202.76,14.60405883]
[1736296102350,0.12549,202.84,202.75,20.0]
[1736296103332,0.12549,202.84,202.76,14.60405883]
[1736296105327,0.12549,202.84,202.76,9.34647114]
[1736296106117,0.12549,202.84,202.75,29.34647114]
[1736296111842,0.12549,202.84,202.76,9.34647114]
[1736296116453,0.12549,202.84,202.77,9.34647114]
[1736296117023,0.12549,202.84,202.76,9.34647114]
[1736296117364,0.12549,202.84,202.75,29.34647114]
[1736296117550,0.12549,202.84,202.72,23.776884]
[1736296117847,0.12549,202.84,202.73,29.34647114]
[1736296119454,0.12549,202.84,202.74,9.34647114]
[1736296121866,0.12549,202.84,202.75,9.34647114]
[1736296122075,0.12549,202.84,202.77,9.34647114]
[1736296122251,0.12549,202.84,202.75,9.34647114]
[1736296122770,0.12549,202.84,202.72,20.0]
[1736296122981,0.12549,202.84,202.74,9.34647114]
[1736296123139,0.12549,202.84,202.73,9.34647114]
[1736296124670,0.12549,202.81,202.72,20.0]
[1736296125184,0.12549,202.81,202.69,17.23387114]
[1736296125480,0.12549,202.81,202.69,9.34647114]
[1736296126469,0.12549,202.81,202.7,9.34647114]
[1736296127671,0.12549,202.81,202.66,13.0754596]
[1736296127868,1.56909,202.79,202.67,9.34647114]
[1736296128777,1.56909,202.79,202.68,9.34647114]
[1736296128942,1.56909,202.79,202.69,9.34647114]
[1736296131652,3.59040731,202.79,202.69,9.34647114]
[1736296133843,3.59040731,202.79,202.68,9.34647114]
[1736296136208,0.12549,202.76,202.69,9.34647114]
[1736296137383,0.12549,202.76,202.68,9.34647114]
[1736296141318,0.12549,202.78,202.68,9.34647114]
[1736296141521,0.12549,202.76,202.68,9.34647114]
[1736296142707,0.12549,202.76,202.67,9.34647114]
[1736296143527,3.46491731,202.79,202.67,9.34647114]
[1736296143924,20.0,202.77,202.67,9.34647114]
[1736296144104,0.12549,202.76,202.67,9.34647114]
[1736296146234,0.12549,202.76,202.68,9.34647114]
[1736296154026,20.0,202.78,202.69,9.34647114]
[1736296154241,20.0,202.78,202.71,9.34647114]
[1736296155435,0.12549,202.77,202.7,9.34647114]
[1736296158651,1.4436,202.79,202.71,9.34647114]
[1736296158810,1.4436,202.79,202.72,9.34647114]
[1736296159136,0.12549,202.78,202.72,9.34647114]
[1736296161839,0.12549,202.78,202.71,9.34647114]
[1736296162249,0.12549,202.78,202.72,9.34647114]
[1736296165722,0.12549,202.78,202.66,12.3359]
[1736296165927,0.12549,202.78,202.65,9.34647114]
[1736296167030,0.12549,202.78,202.66,9.34647114]
[1736296167430,0.12549,202.78,202.65,33.12335514]
[1736296167751,0.12549,202.78,202.66,9.34647114]
[1736296167919,0.12549,202.78,202.67,9.34647114]
[1736296168539,0.12549,202.78,202.65,23.776884]
[1736296168947,0.12549,202.78,202.66,9.34647114]
[1736296170539,0.12549,202.78,202.67,9.34647114]
[1736296170736,0.12549,202.74,202.67,9.34647114]
[1736296171861,0.12549,202.74,202.68,9.34647114]
[1736296172064,7.69842754,202.78,202.73,9.34647114]
[1736296172243,7.69842754,202.78,202.74,9.34647114]
[1736296172558,0.12549,202.77,202.73,9.34647114]
[1736296173167,0.12549,202.78,202.73,9.34647114]
[1736296174138,0.12549,202.78,202.72,9.34647114]
[1736296181289,7.69842754,202.81,202.73,33.12335514]
[1736296181478,7.69842754,202.81,202.75,9.34647114]
[1736296181680,0.12549,202.8,202.75,9.34647114]
[1736296182373,0.12549,202.81,202.71,12.3325]
[1736296182574,0.12549,202.81,202.73,9.34647114]
[1736296183657,0.12549,202.82,202.73,9.34647114]
[1736296185702,0.12549,202.8,202.73,9.34647114]
[1736296191394,0.12549,202.8,202.74,9.34647114]
[1736296194685,0.12549,202.8,202.69,24.51665664]
[1736296194896,0.12549,202.8,202.73,9.34647114]
[1736296195184,0.12549,202.8,202.74,9.34647114]
[1736296197861,0.12549,202.8,202.71,23.776884]
[1736296198062,0.12549,202.8,202.73,9.34647114]
[1736296201086,0.12549,202.8,202.75,9.34647114]
[1736296201309,0.12549,202.8,202.71,24.51665491]
[1736296201310,11.41612754,202.84,202.76,9.34647114]
[1736296201502,11.41612754,202.84,202.8,9.34647114]
[1736296201503,7.69842754,202.84,202.8,9.34647114]
[1736296201666,7.69842754,202.84,202.81,9.34647114]
[1736296202077,0.12549,202.83,202.77,0.73957759]
[1736296202289,0.12549,202.83,202.72,12.3319]
[1736296202603,0.12549,202.83,202.71,8.42472387]
[1736296202604,1.56909,202.83,202.71,20.0]
[1736296202995,0.12549,202.81,202.71,20.0]
[1736296205302,0.12549,202.81,202.71,29.34647114]
[1736296205602,0.12549,202.81,202.71,20.0]
[1736296206487,0.12549,202.81,202.71,29.34647114]
[1736296207128,0.12549,202.81,202.72,9.34647114]
[1736296207410,0.12549,202.81,202.74,9.34647114]
[1736296207619,0.12549,202.81,202.73,9.34647114]
[1736296208405,0.12549,202.81,202.74,9.34647114]
[1736296208726,0.12549,202.82,202.75,9.34647114]
[1736296208892,0.12549,202.82,202.77,9.34647114]
[1736296209087,0.12549,202.82,202.73,7.7493]
[1736296209312,37.31451927,202.84,202.76,9.34647114]
[1736296209497,0.12549,202.83,202.73,7.7493]
[1736296209803,0.12549,202.83,202.74,9.34647114]
[1736296210594,0.12549,202.83,202.73,7.7493]
[1736296210926,0.12549,202.83,202.71,32.3327]
[1736296211106,0.12549,202.83,202.72,23.776884]
[1736296211319,0.12549,202.83,202.72,33.12335514]
[1736296212024,0.12549,202.83,202.73,9.34647114]
[1736296212496,0.12549,202.83,202.74,9.34647114]
[1736296213295,0.12549,202.83,202.73,9.34647114]
[1736296213497,0.12549,202.83,202.74,9.34647114]
[1736296214310,0.12549,202.83,202.75,9.34647114]
[1736296214905,0.12549,202.83,202.73,9.34647114]
[1736296216732,31.85609173,202.84,202.68,8.1439]
[1736296216733,0.12549,202.78,202.68,8.1439]
[1736296217052,0.12549,202.78,202.69,9.34647114]
[1736296217344,0.12549,202.78,202.63,8.59912688]
[1736296217510,0.12549,202.78,202.68,9.34647114]
[1736296218336,0.12549,202.78,202.69,9.34647114]
[1736296218639,0.12549,202.76,202.68,9.34647114]
[1736296218860,0.12549,202.76,202.67,9.34647114]
[1736296219212,0.12549,202.76,202.66,9.34647114]
[1736296219823,20.12549,202.78,202.66,9.34647114]
[1736296220737,20.12549,202.78,202.67,9.34647114]
[1736296221045,20.12549,202.78,202.68,9.34647114]
[1736296222846,20.12549,202.78,202.69,23.776884]
[1736296223047,0.12549,202.78,202.73,9.34647114]
[1736296223649,0.12549,202.78,202.73,23.776884]
[1736296223817,0.12549,202.8,202.73,23.776884]
[1736296225356,7.82391754,202.8,202.73,23.776884]
[1736296225540,7.82391754,202.8,202.69,20.0]
[1736296226657,0.12549,202.78,202.7,23.776884]
[1736296227547,0.12549,202.79,202.7,23.776884]
[1736296227945,7.82391754,202.79,202.7,23.776884]
[1736296228345,7.82391754,202.79,202.67,9.34647114]
[1736296228819,0.12549,202.73,202.63,6.2232]
[1736296229031,0.12549,202.73,202.64,9.34647114]
[1736296229241,0.12549,202.73,202.63,9.34647114]
[1736296229820,0.12549,202.73,202.64,23.776884]
[1736296230458,0.12549,202.73,202.63,23.776884]
[1736296230638,0.12549,202.73,202.61,9.34647114]
[1736296230839,0.12549,202.7,202.59,15.76467114]
[1736296231049,0.12549,202.7,202.57,9.34647114]
[1736296231050,20.12549,202.7,202.57,9.34647114]
[1736296231352,20.12549,202.7,202.56,9.34647114]
[1736296231561,20.12549,202.7,202.57,23.776884]
[1736296232418,20.12549,202.7,202.57,9.34647114]
[1736296232729,0.12549,202.68,202.57,9.34647114]
[1736296234254,0.12549,202.68,202.57,23.776884]
[1736296234457,0.12549,202.66,202.57,23.776884]
[1736296234641,0.12549,202.66,202.55,23.776884]
[1736296235147,0.12549,202.66,202.51,2.98037831]
[1736296235148,0.12549,202.66,202.53,20.0]
[1736296235352,0.12549,202.64,202.53,29.34647114]
[1736296235756,20.12549,202.64,202.52,9.34647114]
[1736296235929,20.12549,202.62,202.49,6.1125]
[1736296236245,20.12549,202.62,202.48,9.34647114]
[1736296236936,2.24,202.61,202.51,9.34647114]
[1736296237135,2.24,202.61,202.53,23.776884]
[1736296237448,0.12549,202.6,202.53,23.776884]
[1736296239055,20.12549,202.6,202.49,9.34647114]
[1736296239224,20.12549,202.6,202.48,29.34647114]
[1736296240044,0.12549,202.6,202.49,23.776884]
[1736296240447,0.12549,202.6,202.47,29.34647114]
[1736296240633,0.12549,202.6,202.49,20.0]
[1736296240833,20.12549,202.6,202.49,20.0]
[1736296241056,0.12549,202.58,202.45,9.34647114]
[1736296241465,0.12549,202.58,202.48,20.0]
[1736296242770,0.12549,202.58,202.49,33.12335514]
[1736296243563,0.12549,202.58,202.47,20.0]
[1736296244264,0.12549,202.58,202.44,29.34647114]
[1736296244470,0.12549,202.58,202.45,53.12335514]
[1736296246667,0.12549,202.58,202.47,23.776884]
[1736296246868,0.12549,202.58,202.47,33.12335514]
[1736296247389,0.12549,202.58,202.45,29.34647114]
[1736296247763,0.12549,202.58,202.47,23.776884]
[1736296248186,0.12549,202.58,202.47,20.0]
[1736296248374,0.12549,202.58,202.47,43.776884]
[1736296248573,0.12549,202.58,202.48,23.776884]
[1736296248791,0.12549,202.55,202.42,7.7055]
[1736296248988,0.12549,202.53,202.43,9.34647114]
[1736296249175,0.12549,202.53,202.37,6.2297]
[1736296249380,2.24,202.54,202.37,6.2297]
[1736296249381,0.12549,202.51,202.37,6.2297]
[1736296249879,3.84319,202.51,202.41,20.0]
[1736296250766,3.84319,202.51,202.42,43.776884]
[1736296250967,0.12549,202.51,202.46,23.776884]
[1736296251299,82.3,202.58,202.45,9.34647114]
[1736296251300,1.4436,202.57,202.5,23.776884]
[1736296251587,3.7177,202.61,202.52,23.776884]
[1736296251796,5.9577,202.61,202.52,23.776884]
[1736296252091,3.6836,202.62,202.53,9.34647114]
[1736296252664,0.12549,202.61,202.52,9.34647114]
[1736296252864,0.12549,202.61,202.52,20.0]
[1736296253090,0.12549,202.61,202.5,23.776884]
[1736296254193,0.12549,202.61,202.48,9.34647114]
[1736296255390,0.12549,202.61,202.47,23.776884]
[1736296255591,0.12549,202.61,202.48,14.64301245]
[1736296258095,0.12549,202.61,202.47,23.776884]
[1736296258096,0.12549,202.61,202.5,23.776884]
[1736296258300,0.12549,202.61,202.5,38.41989645]
[1736296259172,0.12549,202.61,202.51,14.64301245]
[1736296259694,0.12549,202.61,202.5,14.64301245]
[1736296260971,0.12549,202.61,202.49,14.64301245]
[1736296261171,0.12549,202.61,202.47,14.64301245]
[1736296261398,0.12549,202.61,202.48,23.776884]
[1736296261399,20.12549,202.61,202.48,23.776884]
[1736296261711,20.12549,202.61,202.46,14.64301245]
[1736296262407,20.12549,202.57,202.43,26.99271245]
[1736296262592,20.12549,202.57,202.42,20.64771245]
[1736296262791,20.12549,202.57,202.4,26.99471245]
[1736296263299,0.12549,202.54,202.39,16.17931245]
[1736296263504,0.12549,202.52,202.39,14.64301245]
[1736296263804,0.12549,202.52,202.4,38.41989645]
[1736296264002,0.12549,202.52,202.41,14.64301245]
[1736296264387,0.12549,202.52,202.4,14.64301245]
[1736296264902,0.12549,202.52,202.38,23.776884]
[1736296265099,0.12549,202.52,202.4,23.776884]
[1736296265473,0.12549,202.52,202.38,38.41989645]
[1736296265675,0.12549,202.52,202.4,14.64301245]
[1736296265882,2.36549,202.52,202.43,23.776884]
[1736296266508,2.36549,202.52,202.42,23.776884]
[1736296266708,2.36549,202.52,202.4,14.64301245]
[1736296267003,2.36549,202.52,202.41,23.776884]
[1736296267184,2.36549,202.52,202.41,38.41989645]
[1736296267679,2.36549,202.52,202.42,14.64301245]
[1736296269312,2.36549,202.52,202.4,23.776884]
[1736296269517,2.36549,202.52,202.4,38.41989645]
[1736296270108,2.36549,202.52,202.41,14.64301245]
[1736296270713,2.36549,202.52,202.4,38.41989645]
[1736296272310,3.7177,202.51,202.38,14.64301245]
[1736296272611,0.12549,202.46,202.34,14.64301245]
[1736296272919,0.12549,202.44,202.31,14.64301245]
[1736296273428,0.12549,202.44,202.29,2.38581081]
[1736296273716,0.12549,202.44,202.3,14.64301245]
[1736296274025,0.12549,202.44,202.31,14.64301245]
[1736296274211,0.12549,202.44,202.3,14.64301245]
[1736296274601,0.12549,202.44,202.3,23.776884]
[1736296274803,0.12549,202.44,202.31,14.64301245]
[1736296275491,3.7177,202.43,202.29,14.64301245]
[1736296275691,0.12549,202.42,202.3,23.776884]
[1736296276916,0.12549,202.42,202.3,14.64301245]
[1736296277717,0.12549,202.42,202.31,14.64301245]
[1736296278214,3.7177,202.43,202.33,23.776884]
[1736296278428,1.4436,202.47,202.36,14.64301245]
[1736296278628,3.6836,202.47,202.39,14.64301245]
[1736296278795,3.6836,202.47,202.4,14.64301245]
[1736296279125,2.24,202.5,202.42,14.64301245]
[1736296279320,0.12549,202.5,202.42,14.64301245]
[1736296279621,0.12549,202.5,202.4,14.64301245]
[1736296279914,0.12549,202.5,202.41,14.64301245]
[1736296281003,2.24,202.51,202.43,14.64301245]
[1736296281197,0.12549,202.51,202.43,14.64301245]
[1736296281397,0.12549,202.51,202.41,23.776884]
[1736296281605,0.12549,202.51,202.38,15.38388448]
[1736296282030,0.12549,202.49,202.41,23.776884]
[1736296282216,0.12549,202.49,202.43,14.64301245]
[1736296282401,0.12549,202.49,202.45,14.64301245]
[1736296282725,1.4436,202.52,202.45,14.64301245]
[1736296282931,1.4436,202.52,202.46,14.64301245]
[1736296283141,0.12549,202.54,202.46,14.64301245]
[1736296283431,0.12549,202.54,202.45,14.64301245]
[1736296283613,0.12549,202.54,202.43,14.64301245]
[1736296283808,0.12549,202.54,202.44,14.64301245]
[1736296284202,0.12549,202.54,202.45,14.64301245]
[1736296285011,0.12549,202.54,202.47,14.64301245]
[1736296285401,0.12549,202.54,202.48,38.41989645]
[1736296285603,0.12549,202.54,202.49,14.64301245]
[1736296285820,0.12549,202.54,202.48,14.64301245]
[1736296286231,0.12549,202.54,202.49,14.64301245]
[1736296286613,0.12549,202.54,202.5,14.64301245]
[1736296287215,20.0,202.6,202.52,14.64301245]
[1736296287627,0.12549,202.59,202.52,14.64301245]
[1736296287830,0.12549,202.59,202.51,14.64301245]
[1736296288030,0.12549,202.61,202.47,14.64301245]
[1736296288340,0.12549,202.61,202.46,20.97801245]
[1736296288637,0.12549,202.59,202.48,23.776884]
[1736296290447,0.12549,202.59,202.52,14.64301245]
[1736296290647,0.12549,202.61,202.52,14.64301245]
[1736296291314,20.0,202.6,202.52,23.776884]
[1736296291509,0.12549,202.59,202.48,15.38347592]
[1736296291735,0.12549,202.59,202.47,14.64301245]
[1736296292040,0.12549,202.59,202.49,23.776884]
[1736296292341,0.12549,202.59,202.49,38.41989645]
[1736296292542,0.12549,202.59,202.52,14.64301245]
[1736296292722,1.4436,202.62,202.53,15.38347111]
[1736296293042,1.4436,202.62,202.53,14.64301245]
[1736296293631,0.12549,202.61,202.53,14.64301245]
[1736296293834,0.12549,202.61,202.55,14.64301245]
[1736296294033,0.12549,202.61,202.54,38.41989645]
[1736296294340,0.12549,202.61,202.53,14.64301245]
[1736296294544,0.12549,202.61,202.51,15.38335061]
[1736296294839,0.12549,202.59,202.48,16.88301245]
[1736296295336,0.12549,202.59,202.5,14.64301245]
[1736296296322,0.12549,202.59,202.49,24.51739683]
[1736296296636,0.12549,202.59,202.49,23.776884]
[1736296297657,0.12549,202.59,202.5,14.64301245]
[1736296298141,0.12549,202.59,202.53,14.64301245]
[1736296298642,1.4436,202.62,202.54,14.64301245]
[1736296298815,1.4436,202.62,202.54,15.3834267]
[1736296299237,0.12549,202.61,202.53,38.41989645]
[1736296299532,0.12549,202.61,202.53,23.776884]
[1736296299737,0.12549,202.61,202.5,14.64301245]
[1736296300448,0.12549,202.61,202.49,14.64301245]
[1736296300642,0.12549,202.59,202.5,20.0]
[1736296301566,0.12549,202.59,202.49,14.64301245]
[1736296302463,0.12549,202.59,202.51,23.776884]
[1736296303637,0.12549,202.59,202.49,14.64301245]
[1736296303948,0.12549,202.57,202.43,14.64301245]
[1736296304139,0.12549,202.57,202.42,15.58373408]
[1736296304455,0.12549,202.57,202.45,14.64301245]
[1736296304653,0.12549,202.57,202.47,14.64301245]
[1736296304829,0.12549,202.57,202.48,14.64301245]
[1736296305031,0.12549,202.57,202.47,14.64301245]
[1736296306151,20.0,202.6,202.48,14.64301245]
[1736296306457,0.12549,202.58,202.48,14.64301245]
[1736296307367,20.0,202.6,202.51,14.64301245]
[1736296307534,20.0,202.6,202.52,14.64301245]
[1736296307730,0.12549,202.59,202.5,14.64301245]
[1736296307967,0.12549,202.59,202.51,14.64301245]
[1736296309060,1.4436,202.62,202.54,14.64301245]
[1736296309273,1.4436,202.62,202.56,14.64301245]
[1736296309440,0.12549,202.61,202.56,14.64301245]
[1736296310473,29.64773126,202.65,202.56,14.64301245]
[1736296311138,0.12549,202.64,202.56,14.64301245]
[1736296311769,0.12549,202.64,202.55,34.64301245]
[1736296313534,0.12549,202.64,202.56,14.64301245]
[1736296314770,0.12549,202.64,202.55,20.0]
[1736296314956,0.12549,202.64,202.54,14.64301245]
[1736296314957,23.902374,202.64,202.53,14.64301245]
[1736296316173,23.902374,202.64,202.51,14.64301245]
[1736296316347,23.902374,202.64,202.5,15.3834195]
[1736296317592,23.902374,202.64,202.51,14.64301245]
[1736296318643,23.902374,202.64,202.52,35.38341861]
[1736296319077,23.902374,202.64,202.52,34.64301245]
[1736296319775,23.902374,202.64,202.52,20.0]
[1736296320575,23.902374,202.64,202.52,34.64301245]
[1736296321003,23.902374,202.64,202.53,14.64301245]
[1736296321304,23.902374,202.64,202.54,14.64301245]
[1736296322702,0.12549,202.64,202.54,14.64301245]
[1736296322874,0.12549,202.64,202.57,14.64301245]
[1736296323074,0.12549,202.64,202.58,14.64301245]
[1736296324718,0.12549,202.64,202.56,14.64301245]
[1736296324885,0.12549,202.64,202.54,14.64301245]
[1736296325695,0.12549,202.64,202.57,20.0]
[1736296326207,0.12549,202.64,202.56,14.64301245]
[1736296326392,0.12549,202.64,202.56,15.3833299]
[1736296326727,0.12549,202.64,202.57,14.64301245]
[1736296326929,0.12549,202.64,202.56,35.3833299]
[1736296327296,0.12549,202.64,202.56,20.0]
[1736296327707,0.12549,202.64,202.56,35.38330692]
[1736296328012,0.12549,202.64,202.57,14.64301245]
[1736296328719,0.12549,202.64,202.56,20.0]
[1736296329027,0.12549,202.64,202.56,35.38327265]
[1736296330519,0.12549,202.64,202.56,20.0]
[1736296331839,0.12549,202.64,202.56,35.38327095]
[1736296332128,0.12549,202.64,202.56,34.64301245]
[1736296333040,0.12549,202.64,202.59,14.64301245]
[1736296333238,0.12549,202.64,202.6,14.64301245]
[1736296334618,0.12549,202.66,202.6,14.64301245]
[1736296335620,7.66537751,202.68,202.62,14.64301245]
[1736296335804,0.12549,202.67,202.62,14.64301245]
[1736296337628,0.12549,202.68,202.62,14.64301245]
[1736296337834,0.12549,202.68,202.61,14.64301245]
[1736296338038,0.12549,202.68,202.6,14.64301245]
[1736296338439,0.12549,202.69,202.58,14.64301245]
[1736296338644,0.12549,202.69,202.59,14.64301245]
[1736296338832,0.12549,202.69,202.6,14.64301245]
[1736296339057,20.12549,202.69,202.59,0.74021054]
[1736296339263,7.66537751,202.72,202.68,14.64301245]
[1736296339571,7.66537751,202.72,202.71,14.64301245]
[1736296339775,4.44317751,202.72,202.71,14.76850245]
[1736296339976,7.751e-05,202.81,202.74,20.0]
[1736296340272,0.12549,202.81,202.75,22.97950892]
[1736296340464,0.12549,202.81,202.79,14.64301245]
[1736296340775,200.39662919,202.87,202.8,14.64301245]
[1736296340947,23.776884,202.85,202.8,14.64301245]
[1736296341134,200.39662919,202.87,202.8,14.64301245]
[1736296341337,200.39662919,202.87,202.82,14.64301245]
[1736296341560,1.4436,202.91,202.84,14.64301245]
[1736296341774,0.12549,202.9,202.83,14.64301245]
[1736296342143,0.12549,202.9,202.81,14.64301245]
[1736296342343,0.12549,202.9,202.8,14.64301245]
[1736296342545,20.12549,202.9,202.8,14.64301245]
[1736296342787,0.12549,202.9,202.79,14.64301245]
[1736296342971,23.902374,202.9,202.81,14.64301245]
[1736296343363,0.12549,202.9,202.83,14.64301245]
[1736296343673,3.7177,202.99,202.89,14.64301245]
[1736296343835,3.7177,202.99,202.87,14.64301245]
[1736296344037,23.902374,202.98,202.86,14.64301245]
[1736296344341,20.12549,202.98,202.86,14.64301245]
[1736296344540,20.12549,202.98,202.86,15.38220987]
[1736296344772,0.12549,202.97,202.87,14.64301245]
[1736296345138,0.12549,202.97,202.86,15.38220987]
[1736296345342,0.12549,202.97,202.86,14.64301245]
[1736296345563,23.776884,202.98,202.86,14.64301245]
[1736296345564,20.12549,202.98,202.86,14.64301245]
[1736296345951,20.12549,202.98,202.85,2.97916721]
[1736296345952,20.12549,202.98,202.87,14.64301245]
[1736296346158,20.12549,202.98,202.88,14.64301245]
[1736296346555,0.12549,202.96,202.87,14.64301245]
[1736296346759,0.12549,202.96,202.85,2.97916721]
[1736296347085,0.12549,202.96,202.88,14.64301245]
[1736296347290,0.12549,202.97,202.89,14.64301245]
[1736296347860,0.12549,202.98,202.88,14.64301245]
[1736296349395,0.12549,202.98,202.89,14.64301245]
[1736296349998,0.12549,202.98,202.91,14.64301245]
[1736296350484,0.12549,202.98,202.9,14.64301245]
[1736296351059,3.7177,203.04,202.93,14.64301245]
[1736296351292,3.7177,203.04,202.97,14.64301245]
[1736296351495,1.4436,203.08,202.94,23.902374]
[1736296351496,1.4436,203.08,202.98,14.64301245]
[1736296351691,0.12549,203.07,202.98,14.64301245]
[1736296351998,0.12549,203.07,202.97,14.64301245]
[1736296352186,0.12549,203.07,202.93,14.64301245]
[1736296352389,0.12549,202.99,202.93,14.64301245]
[1736296353183,0.12549,203.02,202.92,14.64301245]
[1736296353360,20.0,203.07,202.93,14.64301245]
[1736296354310,20.0,203.07,202.94,14.64301245]
[1736296354475,1.4436,203.08,202.97,14.64301245]
[1736296354674,1.4436,203.08,202.99,14.64301245]
[1736296354873,43.902374,203.07,202.97,14.64301245]
[1736296355069,0.12549,203.02,202.94,14.64301245]
[1736296355683,0.12549,203.04,202.94,14.64301245]
[1736296355895,0.12549,203.04,202.95,14.64301245]
[1736296357287,0.12549,203.04,202.93,17.62188628]
[1736296357495,0.12549,203.04,202.94,14.64301245]
[1736296357832,0.12549,203.04,202.95,14.64301245]
[1736296360597,0.12549,203.04,202.93,22.97887383]
[1736296360905,0.12549,203.04,202.95,14.64301245]
[1736296361412,0.12549,203.04,202.96,14.64301245]
[1736296361620,1.4436,203.08,202.96,14.64301245]
[1736296361621,1.4436,203.08,202.98,14.64301245]
[1736296361818,1.4436,203.08,202.99,14.64301245]
[1736296362027,1.4436,203.08,202.96,0.73887711]
[1736296362326,72.38215639,203.11,203.05,14.64301245]
[1736296362484,72.38215639,203.11,203.06,14.64301245]
[1736296362689,0.12549,203.1,203.07,14.64301245]
[1736296362901,0.12549,203.1,203.06,14.64301245]
[1736296363299,0.12549,203.1,203.07,14.64301245]
[1736296363497,0.12549,203.1,203.06,14.64301245]
[1736296364106,0.12549,203.14,203.08,14.64301245]
[1736296364425,1.4436,203.19,203.11,14.64301245]
[1736296364594,3.7177,203.2,203.11,14.64301245]
[1736296364787,1.4436,203.24,203.13,14.64301245]
[1736296365351,0.12549,203.23,203.14,14.64301245]
[1736296365527,0.12549,203.23,203.15,14.64301245]
[1736296366515,0.12549,203.23,203.14,14.64301245]
[1736296366833,0.12549,203.23,203.13,14.64301245]
[1736296368534,0.12549,203.23,203.15,14.64301245]
[1736296368741,1.4436,203.29,203.19,14.64301245]
[1736296369541,0.12549,203.28,203.19,14.64301245]
[1736296370746,0.12549,203.27,203.15,17.62100785]
[1736296370912,0.12549,203.24,203.12,16.88301245]
[1736296371298,0.12549,203.24,203.14,14.64301245]
[1736296371498,0.12549,203.24,203.16,14.64301245]
[1736296371839,2.24,203.27,203.18,14.64301245]
[1736296372300,0.12549,203.26,203.18,14.64301245]
[1736296374334,0.12549,203.26,203.17,14.64301245]
[1736296374944,0.12549,203.26,203.16,14.64301245]
[1736296375445,0.12549,203.26,203.17,23.776884]
[1736296375620,0.12549,203.26,203.17,38.41989645]
[1736296376130,0.12549,203.26,203.18,14.64301245]
[1736296376417,0.12549,203.26,203.17,38.41989645]
[1736296377044,0.12549,203.26,203.15,17.62109806]
[1736296377211,0.12549,203.26,203.16,38.41989645]
[1736296378710,0.12549,203.26,203.09,8.1186]
[1736296378711,0.12549,203.22,203.09,8.1186]
[1736296378920,0.12549,203.22,203.15,14.64301245]
[1736296379133,0.12549,203.22,203.16,14.64301245]
[1736296379311,0.12549,203.26,203.14,14.64301245]
[1736296379630,0.12549,203.22,203.09,14.64301245]
[1736296379813,0.12549,203.2,203.08,16.88301245]
[1736296380015,0.12549,203.2,203.09,14.64301245]
[1736296380212,0.12549,203.2,203.08,2.24]
[1736296380213,0.12549,203.2,203.11,14.64301245]
[1736296380438,0.12549,203.2,203.13,14.64301245]
[1736296380739,0.12549,203.2,203.1,23.776884]
[1736296380916,0.12549,203.2,203.11,14.64301245]
[1736296381119,0.12549,203.2,203.12,14.64301245]
[1736296381636,0.12549,203.2,203.13,14.64301245]
[1736296381840,0.12549,203.2,203.12,14.64301245]
[1736296382019,0.12549,203.2,203.1,14.64301245]
[1736296382224,3.84319,203.2,203.09,14.64301245]
[1736296382451,3.84319,203.2,203.08,20.0]